fUST/lending_fUST_20241025
["ID","MTS","AMOUNT","RATE_DAILY","PERIOD"]
[340804835,1729859441685,-1070.32,0.00013698,2]
[340804836,1729859441694,-500.0,0.00013698,2]
[340804837,1729859441704,-549.65,0.00013698,2]
[340804838,1729859441713,-515.2,0.00013698,2]
[340804839,1729859441722,-500.0,0.00013698,2]
[340804840,1729859441732,-534.79,0.00013698,2]
[340804841,1729859441742,-1278.705562,0.00013698,2]
[340804842,1729859441751,-1278.705562,0.00013698,2]
[340804843,1729859441761,-1278.705562,0.00013698,2]
[340804844,1729859441771,-1278.705562,0.00013698,2]
[340804845,1729859441781,-500.0,0.00013698,2]
[340804846,1729859441791,-1011.77,0.00013698,2]
[340804847,1729859441800,-699.91,0.00013698,2]
[340804848,1729859441810,-823.33,0.00013698,2]
[340804849,1729859441819,-500.0,0.00013698,2]
[340804850,1729859441829,-550.14,0.00013698,2]
[340804851,1729859441839,-500.0,0.00013698,2]
[340804852,1729859441848,-1109.02,0.00013698,2]
[340804853,1729859441859,-997.54,0.00013698,2]
[340804854,1729859441869,-894.61,0.00013698,2]
[340804855,1729859441879,-643.05,0.00013698,2]
[340804856,1729859441888,-621.93,0.00013698,2]
[340804857,1729859441898,-500.0,0.00013698,2]
[340804858,1729859441907,-1240.286427,0.00013698,2]
[340804859,1729859441917,-500.0,0.00013698,2]
[340804860,1729859441927,-1039.47,0.00013698,2]
[340804861,1729859441937,-151.0,0.00013698,2]
[340804862,1729859441947,-151.0,0.00013698,2]
[340804863,1729859441958,-151.0,0.00013698,2]
[340804864,1729859441967,-151.0,0.00013698,2]
[340804865,1729859441976,-500.0,0.00013698,2]
[340804866,1729859441986,-500.0,0.00013698,2]
[340804867,1729859441996,-634.76,0.00013698,2]
[340804868,1729859442007,-151.0,0.00013698,2]
[340804869,1729859442017,-151.0,0.00013698,2]
[340804870,1729859442027,-151.0,0.00013698,2]
[340804871,1729859442036,-151.0,0.00013698,2]
[340804872,1729859442046,-500.0,0.00013698,2]
[340804873,1729859442055,-643.07,0.00013698,2]
[340804874,1729859442066,-256.575884,0.00013698,2]
[340804875,1729859442076,-500.0,0.00013698,2]
[340804876,1729859442085,-500.0,0.00013698,2]
[340804877,1729859442097,-500.0,0.00013698,2]
[340804878,1729859442107,-1817.74,0.00013698,2]
[340804879,1729859442117,-152.67342,0.00013698,2]
[340804880,1729859442129,-152.67342,0.00013698,2]
[340804881,1729859442142,-152.67342,0.00013698,2]
[340804882,1729859442152,-574.84,0.00013698,2]
[340804883,1729859442162,-500.0,0.00013698,2]
[340804884,1729859442173,-676.29,0.00013698,2]
[340804885,1729859442184,-152.67342,0.00013698,2]
[340804886,1729859442196,-152.67342,0.00013698,2]
[340804887,1729859442209,-152.67342,0.00013698,2]
[340804888,1729859442218,-152.67342,0.00013698,2]
[340804889,1729859442227,-1613.66,0.00013698,2]
[340804890,1729859442237,-500.0,0.00013698,2]
[340804891,1729859442247,-704.19,0.00013698,2]
[340804892,1729859442259,-736.4,0.00013698,2]
[340804893,1729859442269,-915.48,0.00013698,2]
[340804894,1729859442279,-508.89288883,0.00013698,2]
[340804895,1729859442288,-1010.76,0.00013698,2]
[340804896,1729859442298,-699.3,0.00013698,2]
[340804897,1729859442307,-605.560689,0.00013698,2]
[340804898,1729859442317,-605.560689,0.00013698,2]
[340804899,1729859442327,-605.560689,0.00013698,2]
[340804900,1729859442338,-605.560689,0.00013698,2]
[340804901,1729859442349,-496.155664,0.00013698,2]
[340804902,1729859442359,-496.155664,0.00013698,2]
[340804903,1729859442370,-496.155664,0.00013698,2]
[340804904,1729859442379,-151.0,0.00013698,2]
[340804905,1729859442389,-496.155664,0.00013698,2]
[340804906,1729859442398,-151.0,0.00013698,2]
[340804907,1729859442407,-151.0,0.00013698,2]
[340804908,1729859442416,-151.0,0.00013698,2]
[340804909,1729859442426,-151.0,0.00013698,2]
[340804910,1729859442435,-605.560689,0.00013698,2]
[340804911,1729859442445,-500.0,0.00013698,2]
[340804912,1729859442454,-605.560689,0.00013698,2]
[340804913,1729859442464,-605.560689,0.00013698,2]
[340804914,1729859442473,-605.560689,0.00013698,2]
[340804915,1729859442483,-496.155664,0.00013698,2]
[340804916,1729859442492,-496.155664,0.00013698,2]
[340804918,1729859442502,-496.155664,0.00013698,2]
[340804919,1729859442512,-419.880228,0.00013698,2]
[340804921,1729859442521,-496.155664,0.00013698,2]
[340804923,1729859442531,-419.880228,0.00013698,2]
[340804924,1729859442540,-419.880228,0.00013698,2]
[340804925,1729859442550,-546.16,0.00013698,2]
[340804926,1729859442562,-419.880228,0.00013698,2]
[340804927,1729859442571,-419.880228,0.00013698,2]
[340804928,1729859442580,-500.0,0.00013698,2]
[340804929,1729859442590,-188.159192,0.00013698,2]
[340804930,1729859442600,-188.159192,0.00013698,2]
[340804931,1729859442610,-188.159192,0.00013698,2]
[340804932,1729859442620,-188.159192,0.00013698,2]
[340804933,1729859442629,-636.58,0.00013698,2]
[340804936,1729859442638,-500.0,0.00013698,2]
[340804939,1729859442651,-628.61,0.00013698,2]
[340804942,1729859442660,-188.159192,0.00013698,2]
[340804945,1729859442670,-516.57,0.00013698,2]
[340804947,1729859442679,-188.159192,0.00013698,2]
[340804949,1729859442689,-188.159192,0.00013698,2]
[340804952,1729859442699,-188.159192,0.00013698,2]
[340804953,1729859442708,-552.33,0.00013698,2]
[340804954,1729859442718,-829.9,0.00013698,2]
[340804955,1729859442727,-885.88,0.00013698,2]
[340804957,1729859442737,-1144.94,0.00013698,2]
[340804958,1729859442746,-500.0,0.00013698,2]
[340804959,1729859442756,-500.0,0.00013698,2]
[340804960,1729859442765,-1035.71,0.00013698,2]
[340804961,1729859442774,-151.0,0.00013698,2]
[340804962,1729859442784,-151.0,0.00013698,2]
[340804963,1729859442793,-151.0,0.00013698,2]
[340804964,1729859442805,-151.0,0.00013698,2]
[340804965,1729859442815,-289.972794,0.00013698,2]
[340804966,1729859442826,-500.0,0.00013698,2]
[340804967,1729859442837,-1634.87,0.00013698,2]
[340804968,1729859442847,-500.0,0.00013698,2]
[340804969,1729859442858,-500.0,0.00013698,2]
[340804970,1729859442869,-1132.68,0.00013698,2]
[340804971,1729859442878,-506.05,0.00013698,2]
[340804972,1729859442887,-500.0,0.00013698,2]
[340804973,1729859442897,-22078.13,0.00013698,2]
[340804974,1729859442906,-500.0,0.00013698,2]
[340804975,1729859442915,-151.0,0.00013698,2]
[340804976,1729859442925,-151.0,0.00013698,2]
[340804977,1729859442934,-151.0,0.00013698,2]
[340804978,1729859442943,-500.0,0.00013698,2]
[340804979,1729859442952,-802.2,0.00013698,2]
[340804981,1729859442961,-151.0,0.00013698,2]
[340804982,1729859442970,-151.0,0.00013698,2]
[340804984,1729859443143,-151.0,0.00013698,2]
[340804985,1729859443153,-151.0,0.00013698,2]
[340804986,1729859443163,-151.0,0.00013698,2]
[340804987,1729859443174,-151.0,0.00013698,2]
[340804988,1729859443184,-500.0,0.00013698,2]
[340804989,1729859443193,-151.0,0.00013698,2]
[340804990,1729859443202,-151.0,0.00013698,2]
[340804991,1729859443214,-151.0,0.00013698,2]
[340804992,1729859443224,-1630.31,0.00013698,2]
[340804993,1729859443234,-3679.67,0.00013698,2]
[340804994,1729859443245,-3834.78,0.00013698,2]
[340804995,1729859443255,-173.25883,0.00013698,2]
[340804996,1729859443264,-173.25883,0.00013698,2]
[340804997,1729859443274,-173.25883,0.00013698,2]
[340804998,1729859443286,-500.0,0.00013698,2]
[340804999,1729859443295,-173.25883,0.00013698,2]
[340805000,1729859443304,-173.25883,0.00013698,2]
[340805001,1729859443314,-221.10657769,0.00013698,2]
[340805002,1729859443323,-173.25883,0.00013698,2]
[340805003,1729859443333,-544.61,0.00013698,2]
[340805004,1729859443342,-173.25883,0.00013698,2]
[340805005,1729859443351,-173.25883,0.00013698,2]
[340805006,1729859443361,-173.25883,0.00013698,2]
[340805007,1729859443371,-173.25883,0.00013698,2]
[340805008,1729859443381,-1313.9,0.00013698,2]
[340805009,1729859443391,-955.55,0.00013698,2]
[340805010,1729859443402,-500.0,0.00013698,2]
[340805011,1729859443411,-3562.7,0.00013698,2]
[340805012,1729859443422,-500.0,0.00013698,2]
[340805013,1729859443432,-227.085088,0.00013698,2]
[340805014,1729859443441,-227.085088,0.00013698,2]
[340805015,1729859443450,-227.085088,0.00013698,2]
[340805016,1729859443461,-227.085088,0.00013698,2]
[340805017,1729859443470,-1484.1,0.00013698,2]
[340805018,1729859443480,-227.085088,0.00013698,2]
[340805019,1729859443490,-227.085088,0.00013698,2]
[340805020,1729859443500,-500.0,0.00013698,2]
[340805021,1729859443509,-926.69,0.00013698,2]
[340805022,1729859443519,-227.085088,0.00013698,2]
[340805023,1729859443529,-227.085088,0.00013698,2]
[340805024,1729859443539,-227.085088,0.00013698,2]
[340805025,1729859443549,-500.0,0.00013698,2]
[340805026,1729859443557,-227.085088,0.00013698,2]
[340805027,1729859443567,-227.085088,0.00013698,2]
[340805028,1729859443577,-227.085088,0.00013698,2]
[340805029,1729859443586,-1045.92,0.00013698,2]
[340805030,1729859443596,-500.0,0.00013698,2]
[340805031,1729859443606,-151.0,0.00013698,2]
[340805032,1729859443616,-151.0,0.00013698,2]
[340805033,1729859443627,-151.0,0.00013698,2]
[340805034,1729859443636,-151.0,0.00013698,2]
[340805035,1729859443647,-151.0,0.00013698,2]
[340805036,1729859443656,-1498.76,0.00013698,2]
[340805037,1729859443666,-500.0,0.00013698,2]
[340805038,1729859443675,-240.820208,0.00013698,2]
[340805039,1729859443685,-240.820208,0.00013698,2]
[340805040,1729859443694,-240.820208,0.00013698,2]
[340805041,1729859443704,-240.820208,0.00013698,2]
[340805042,1729859443714,-240.820208,0.00013698,2]
[340805043,1729859443724,-240.820208,0.00013698,2]
[340805044,1729859443734,-151.0,0.00013698,2]
[340805045,1729859443744,-240.820208,0.00013698,2]
[340805046,1729859443753,-240.820208,0.00013698,2]
[340805047,1729859443763,-240.820208,0.00013698,2]
[340805048,1729859443772,-240.820208,0.00013698,2]
[340805049,1729859443782,-151.0,0.00013698,2]
[340805050,1729859443791,-500.0,0.00013698,2]
[340805051,1729859443801,-151.0,0.00013698,2]
[340805052,1729859443810,-151.0,0.00013698,2]
[340805053,1729859443820,-151.0,0.00013698,2]
[340805054,1729859443830,-151.0,0.00013698,2]
[340805055,1729859443839,-508.65,0.00013698,2]
[340805056,1729859443848,-500.0,0.00013698,2]
[340805057,1729859443858,-1458.37,0.00013698,2]
[340805058,1729859443869,-515.731322,0.00013698,2]
[340805059,1729859443878,-515.731322,0.00013698,2]
[340805060,1729859443888,-515.731322,0.00013698,2]
[340805061,1729859443897,-515.731322,0.00013698,2]
[340805062,1729859443906,-515.731322,0.00013698,2]
[340805063,1729859443915,-197.514711,0.00013698,2]
[340805064,1729859443926,-197.514711,0.00013698,2]
[340805065,1729859443936,-197.514711,0.00013698,2]
[340805066,1729859443945,-515.731322,0.00013698,2]
[340805067,1729859443953,-197.514711,0.00013698,2]
[340805068,1729859443963,-515.731322,0.00013698,2]
[340805069,1729859443973,-197.514711,0.00013698,2]
[340805070,1729859443982,-515.731322,0.00013698,2]
[340805071,1729859443992,-515.731322,0.00013698,2]
[340805072,1729859444003,-515.731322,0.00013698,2]
[340805073,1729859444013,-197.514711,0.00013698,2]
[340805074,1729859444025,-197.514711,0.00013698,2]
[340805075,1729859444035,-197.514711,0.00013698,2]
[340805076,1729859444046,-503.82564163,0.00013698,2]
[340805077,1729859444057,-197.514711,0.00013698,2]
[340805078,1729859444066,-500.0,0.00013698,2]
[340805079,1729859444075,-197.514711,0.00013698,2]
[340805080,1729859444084,-500.0,0.00013698,2]
[340805081,1729859444093,-151.0,0.00013698,2]
[340805082,1729859444102,-151.0,0.00013698,2]
[340805083,1729859444111,-151.0,0.00013698,2]
[340805084,1729859444122,-151.0,0.00013698,2]
[340805085,1729859444133,-151.0,0.00013698,2]
[340805086,1729859444143,-151.0,0.00013698,2]
[340805087,1729859444155,-151.0,0.00013698,2]
[340805088,1729859444164,-151.0,0.00013698,2]
[340805089,1729859444174,-5553.78,0.00013698,2]
[340805090,1729859444183,-151.0,0.00013698,2]
[340805091,1729859444192,-151.0,0.00013698,2]
[340805092,1729859444202,-151.0,0.00013698,2]
[340805093,1729859444212,-202.011715,0.00013698,2]
[340805094,1729859444222,-151.0,0.00013698,2]
[340805095,1729859444233,-151.0,0.00013698,2]
[340805096,1729859444243,-933.72,0.00013698,2]
[340805097,1729859444252,-151.0,0.00013698,2]
[340805098,1729859444262,-151.0,0.00013698,2]
[340805099,1729859444272,-151.0,0.00013698,2]
[340805100,1729859444282,-151.0,0.00013698,2]
[340805101,1729859444292,-151.0,0.00013698,2]
[340805102,1729859444301,-500.0,0.00013698,2]
[340805103,1729859444310,-644.97,0.00013698,2]
[340805104,1729859444320,-500.0,0.00013698,2]
[340805105,1729859444329,-2271.04,0.00013698,2]
[340805106,1729859444339,-669.36,0.00013698,2]
[340805107,1729859444349,-500.0,0.00013698,2]
[340805108,1729859444359,-10977.84,0.00013698,2]
[340805109,1729859444371,-500.0,0.00013698,2]
[340805110,1729859444381,-1062.52,0.00013698,2]
[340805111,1729859444392,-500.0,0.00013698,2]
[340805112,1729859444401,-1033.17,0.00013698,2]
[340805113,1729859444412,-542.92,0.00013698,2]
[340805114,1729859444421,-813.38,0.00013698,2]
[340805115,1729859444430,-500.0,0.00013698,2]
[340805116,1729859444439,-151.0,0.00013698,2]
[340805117,1729859444448,-500.0,0.00013698,2]
[340805118,1729859444457,-151.0,0.00013698,2]
[340805119,1729859444466,-151.0,0.00013698,2]
[340805120,1729859444476,-4014.21,0.00013698,2]
[340805121,1729859444485,-151.0,0.00013698,2]
[340805122,1729859444495,-500.0,0.00013698,2]
[340805123,1729859444504,-151.0,0.00013698,2]
[340805124,1729859444514,-665.16,0.00013698,2]
[340805125,1729859444524,-151.0,0.00013698,2]
[340805126,1729859444533,-500.0,0.00013698,2]
[340805127,1729859444543,-151.0,0.00013698,2]
[340805128,1729859444553,-151.0,0.00013698,2]
[340805129,1729859444563,-151.0,0.00013698,2]
[340805130,1729859444572,-151.0,0.00013698,2]
[340805131,1729859444583,-500.0,0.00013698,2]
[340805132,1729859444593,-1320.09,0.00013698,2]
[340805133,1729859444603,-500.0,0.00013698,2]
[340805134,1729859444616,-500.0,0.00013698,2]
[340805135,1729859444627,-1003.51,0.00013698,2]
[340805136,1729859444637,-188.313846,0.00013698,2]
[340805137,1729859444647,-188.313846,0.00013698,2]
[340805138,1729859444656,-737.46,0.00013698,2]
[340805139,1729859444666,-188.313846,0.00013698,2]
[340805140,1729859444676,-188.313846,0.00013698,2]
[340805141,1729859444687,-188.313846,0.00013698,2]
[340805142,1729859444697,-1168.87,0.00013698,2]
[340805143,1729859444708,-151.0,0.00013698,2]
[340805144,1729859444717,-151.0,0.00013698,2]
[340805145,1729859444726,-151.0,0.00013698,2]
[340805146,1729859444736,-500.0,0.00013698,2]
[340805147,1729859444746,-188.313846,0.00013698,2]
[340805148,1729859444755,-188.313846,0.00013698,2]
[340805149,1729859444765,-188.313846,0.00013698,2]
[340805150,1729859444776,-188.313846,0.00013698,2]
[340805151,1729859444785,-188.313846,0.00013698,2]
[340805152,1729859444795,-3181.69,0.00013698,2]
[340805153,1729859444805,-500.0,0.00013698,2]
[340805154,1729859444815,-3378.86,0.00013698,2]
[340805155,1729859444824,-500.0,0.00013698,2]
[340805156,1729859444834,-6747.09,0.00013698,2]
[340805157,1729859444844,-726.72,0.00013698,2]
[340805158,1729859444854,-1644.86,0.00013698,2]
[340805159,1729859444865,-500.0,0.00013698,2]
[340805160,1729859444875,-500.0,0.00013698,2]
[340805161,1729859444885,-151.0,0.00013698,2]
[340805162,1729859444896,-151.0,0.00013698,2]
[340805163,1729859444906,-151.0,0.00013698,2]
[340805164,1729859444915,-230.488287,0.00013698,2]
[340805165,1729859444925,-247.999507,0.00013698,2]
[340805166,1729859444935,-247.999507,0.00013698,2]
[340805167,1729859444945,-247.999507,0.00013698,2]
[340805168,1729859444955,-247.999507,0.00013698,2]
[340805169,1729859444966,-247.999507,0.00013698,2]
[340805170,1729859444976,-247.999507,0.00013698,2]
[340805171,1729859444985,-247.999507,0.00013698,2]
[340805172,1729859444995,-247.999507,0.00013698,2]
[340805173,1729859445005,-2873.35,0.00013698,2]
[340805174,1729859445016,-247.999507,0.00013698,2]
[340805175,1729859445026,-247.999507,0.00013698,2]
[340805176,1729859445039,-2975.45,0.00013698,2]
[340805177,1729859445050,-151.0,0.00013698,2]
[340805178,1729859445059,-151.0,0.00013698,2]
[340805179,1729859445069,-151.0,0.00013698,2]
[340805180,1729859445079,-1116.443501,0.00013698,2]
[340805181,1729859445088,-151.0,0.00013698,2]
[340805182,1729859445099,-1116.443501,0.00013698,2]
[340805183,1729859445108,-151.0,0.00013698,2]
[340805184,1729859445119,-1116.443501,0.00013698,2]
[340805185,1729859445130,-1116.443501,0.00013698,2]
[340805186,1729859445141,-1116.443501,0.00013698,2]
[340805187,1729859445151,-151.0,0.00013698,2]
[340805188,1729859445161,-1000.89,0.00013698,2]
[340805189,1729859445172,-1116.443501,0.00013698,2]
[340805190,1729859445182,-1116.443501,0.00013698,2]
[340805191,1729859445192,-151.0,0.00013698,2]
[340805192,1729859445202,-151.0,0.00013698,2]
[340805193,1729859445213,-1116.443501,0.00013698,2]
[340805194,1729859445222,-163.23582,0.00013698,2]
[340805195,1729859445233,-151.0,0.00013698,2]
[340805196,1729859445242,-1116.443501,0.00013698,2]
[340805197,1729859445253,-1116.443501,0.00013698,2]
[340805198,1729859445262,-500.0,0.00013698,2]
[340805199,1729859445273,-151.0,0.00013698,2]
[340805200,1729859445282,-274.430366,0.00013698,2]
[340805201,1729859445292,-500.0,0.00013698,2]
[340805202,1729859445302,-797.87,0.00013698,2]
[340805203,1729859445313,-151.0,0.00013698,2]
[340805204,1729859445323,-585.65,0.00013698,2]
[340805205,1729859445334,-151.0,0.00013698,2]
[340805206,1729859445344,-1224.17,0.00013698,2]
[340805207,1729859445355,-224.441056,0.00013698,2]
[340805208,1729859445366,-556.91880282,0.00013698,2]
[340805209,1729859445375,-500.0,0.00013698,2]
[340805210,1729859445386,-240.83292,0.00013698,2]
[340805211,1729859445395,-240.83292,0.00013698,2]
[340805212,1729859445406,-240.83292,0.00013698,2]
[340805213,1729859445417,-240.83292,0.00013698,2]
[340805214,1729859445426,-240.83292,0.00013698,2]
[340805215,1729859445436,-500.0,0.00013698,2]
[340805216,1729859445446,-1831.62,0.00013698,2]
[340805217,1729859445456,-240.83292,0.00013698,2]
[340805218,1729859445466,-240.83292,0.00013698,2]
[340805219,1729859445476,-669.44,0.00013698,2]
[340805220,1729859445485,-240.83292,0.00013698,2]
[340805221,1729859445495,-240.83292,0.00013698,2]
[340805222,1729859445505,-240.83292,0.00013698,2]
[340805223,1729859445515,-500.0,0.00013698,2]
[340805224,1729859445524,-829.43,0.00013698,2]
[340805225,1729859445534,-1101.63,0.00013698,2]
[340805226,1729859445543,-500.0,0.00013698,2]
[340805227,1729859445553,-679.66,0.00013698,2]
[340805228,1729859445562,-1494.25,0.00013698,2]
[340805229,1729859445572,-832.62,0.00013698,2]
[340805230,1729859445582,-569.47,0.00013698,2]
[340805231,1729859445593,-421.187957,0.00013699,2]
[340805232,1729859445603,-6105.337921,0.00013699,2]
[340805233,1729859445613,-1217.679311,0.00013699,2]
[340805234,1729859445623,-151.0,0.00013699,2]
[340805235,1729859445633,-151.0,0.00013699,2]
[340805236,1729859445644,-352.013793,0.00013699,2]
[340805237,1729859445655,-352.013793,0.00013699,2]
[340805238,1729859445666,-151.0,0.00013699,2]
[340805239,1729859445676,-173.25883,0.00013699,2]
[340805240,1729859445686,-173.25883,0.00013699,2]
[340805241,1729859445696,-240.820208,0.00013699,2]
[340805242,1729859445706,-240.820208,0.00013699,2]
[340805243,1729859445716,-151.0,0.00013699,2]
[340805244,1729859445726,-151.0,0.00013699,2]
[340805245,1729859445736,-247.999507,0.00013699,2]
[340805246,1729859445746,-247.999507,0.00013699,2]
[340805247,1729859445755,-151.0,0.00013699,2]
[340805248,1729859445765,-1116.443501,0.00013699,2]
[340805249,1729859445775,-1116.443501,0.00013699,2]
[340805250,1729859445785,-240.83292,0.00013699,2]
[340805251,1729859445794,-240.83292,0.00013699,2]
[340805252,1729859445804,-19876.7941182,0.0001375,2]
[340805253,1729859445814,-18320.2146668,0.0001375,2]
[340805254,1729859445824,-419.880228,0.0001376,2]
[340805255,1729859445834,-151.0,0.0001376,2]
[340805256,1729859445843,-227.085088,0.0001376,2]
[340805257,1729859445853,-227.085088,0.0001376,2]
[340805258,1729859445862,-189.926382,0.0001376,2]
[340805259,1729859445873,-515.731322,0.0001376,2]
[340805260,1729859445883,-197.514711,0.0001376,2]
[340805261,1729859445893,-515.731322,0.0001376,2]
[340805262,1729859445903,-197.514711,0.0001376,2]
[340805263,1729859445913,-151.0,0.0001376,2]
[340805264,1729859445924,-151.0,0.0001376,2]
[340805265,1729859445933,-188.313846,0.0001376,2]
[340805266,1729859445943,-188.313846,0.0001376,2]
[340805267,1729859445953,-1278.705562,0.0001377,2]
[340805268,1729859445962,-1278.705562,0.0001377,2]
[340805269,1729859445972,-1240.286427,0.0001377,2]
[340805270,1729859445983,-151.0,0.0001377,2]
[340805271,1729859445994,-151.0,0.0001377,2]
[340805272,1729859446004,-605.560689,0.0001377,2]
[340805273,1729859446014,-605.560689,0.0001377,2]
[340805274,1729859446023,-173.25883,0.0001377,2]
[340805275,1729859446032,-173.25883,0.0001377,2]
[340805276,1729859446042,-240.820208,0.0001377,2]
[340805277,1729859446052,-240.820208,0.0001377,2]
[340805278,1729859446061,-151.0,0.0001377,2]
[340805279,1729859446071,-151.0,0.0001377,2]
[340805280,1729859446081,-247.999507,0.0001377,2]
[340805281,1729859446091,-247.999507,0.0001377,2]
[340805282,1729859446100,-151.0,0.0001377,2]
[340805283,1729859446111,-1116.443501,0.0001377,2]
[340805284,1729859446124,-1116.443501,0.0001377,2]
[340805285,1729859446137,-240.83292,0.0001377,2]
[340805286,1729859446146,-240.83292,0.0001377,2]
[340805287,1729859446156,-509.332659,0.0001377,2]
[340805288,1729859446166,-174.858212,0.0001377,2]
[340805289,1729859446176,-246.421474,0.00013786,2]
[340805290,1729859446186,-246.421474,0.00013786,2]
[340805291,1729859446197,-151.0,0.00013796,2]
[340805292,1729859446209,-151.0,0.00013796,2]
[340805293,1729859446219,-151.0,0.00013796,2]
[340805294,1729859446229,-174.035703,0.00013796,2]
[340805295,1729859446238,-174.035703,0.00013796,2]
[340805296,1729859446249,-152.67342,0.00013796,2]
[340805297,1729859446258,-152.67342,0.00013796,2]
[340805298,1729859446267,-496.155664,0.00013796,2]
[340805299,1729859446276,-496.155664,0.00013796,2]
[340805300,1729859446285,-188.159192,0.00013796,2]
[340805301,1729859446295,-188.159192,0.00013796,2]
[340805302,1729859446305,-3436.94,0.00013796,2]
[340805303,1729859446315,-150.112233,0.000138,2]
[340805304,1729859446325,-628.0,0.000138,2]
[340805305,1729859446334,-150.112233,0.000139,2]
[340805306,1729859446345,-150.112233,0.000139,2]
[340805307,1729859446355,-150.112233,0.000139,2]
[340805308,1729859446365,-150.112233,0.000139,2]
[340805309,1729859446376,-19876.7941182,0.00013912,2]
[340805310,1729859446386,-18320.2146668,0.00013912,2]
[340805311,1729859446395,-151.0,0.00013912,2]
[340805312,1729859446404,-240.83292,0.00013912,2]
[340805313,1729859446414,-240.83292,0.00013912,2]
[340805314,1729859446424,-151.0,0.00013922,2]
[340805315,1729859446434,-151.0,0.00013922,2]
[340805316,1729859446443,-262.341517,0.00013922,2]
[340805317,1729859446454,-262.341517,0.00013922,2]
[340805319,1729859446465,-352.013793,0.00013922,2]
[340805321,1729859446475,-352.013793,0.00013922,2]
[340805323,1729859446485,-151.0,0.00013922,2]
[340805325,1729859446495,-1278.705562,0.00013922,2]
[340805327,1729859446505,-1278.705562,0.00013922,2]
[340805329,1729859446514,-666.77059298,0.00013922,2]
[340805354,1729859447426,-419.52770081,0.00013922,2]
[340805358,1729859474406,378.26,0.00010959,2]
[340805364,1729860255055,35695.68326526,0.00016,5]
[340805365,1729860287758,10830.7208369,0.00019,15]
[340805401,1729860632199,-174.858214,0.00013567,2]
[340805403,1729860632209,-169.777553,0.00013567,2]
[340805405,1729860632220,-165.84251,0.00013567,2]
[340805407,1729860632231,-150.0,0.0001359,2]
[340805409,1729860632241,-300.0,0.00013599,2]
[340805410,1729860632251,-5853.521723,0.000136,2]
[340806029,1729860638460,-150.0,0.0001359,2]
[340806030,1729860638470,-2267.368277,0.000136,2]
[340806031,1729860638479,-500.0,0.00013673,2]
[340806032,1729860638490,-150.76926194,0.00013678,2]
[340806033,1729860638499,-509.51693145,0.00013678,2]
[340806071,1729860640334,-250.0,0.00013678,2]
[340806072,1729860640393,-19684.99083885,0.00013678,2]
[340806073,1729860640404,-29902.8649604,0.00013678,2]
[340806074,1729860640413,-215.874,0.00013688,2]
[340806075,1729860640422,-102222.538851,0.00013688,2]
[340806076,1729860640432,-149514.324802,0.00013688,2]
[340806077,1729860640442,-500.0,0.00013698,2]
[340806078,1729860640452,-500.0,0.00013698,2]
[340806079,1729860640462,-250.0,0.00013698,2]
[340806080,1729860640472,-518.43,0.00013698,2]
[340806081,1729860640481,-500.0,0.00013698,2]
[340806082,1729860640491,-547.03,0.00013698,2]
[340806083,1729860640500,-534.5,0.00013698,2]
[340806084,1729860640510,-500.0,0.00013698,2]